[Event "Live Chess"]
[Site "Chess.com"]
[Date "2010.12.04"]
[Round "-"]
[White "9tony9"]
[Black "hipposcottimus"]
[Result "0-1"]
[CurrentPosition "1b4k1/pp6/2b5/3r2rp/6p1/6P1/P4P1P/R3R1K1 w - -"]
[Timezone "UTC"]
[ECO "C20"]
[ECOUrl "https://www.chess.com/openings/Kings-Pawn-Opening-Napoleon-Attack"]
[UTCDate "2010.12.04"]
[UTCTime "00:57:16"]
[WhiteElo "1461"]
[BlackElo "1628"]
[TimeControl "60"]
[Termination "hipposcottimus won on time"]
[StartTime "00:57:16"]
[EndDate "2010.12.04"]
[EndTime "00:59:32"]
[Link "https://www.chess.com/game/live/73810619"]

1. e4 {[%clk 0:01:00]} 1... e5 {[%clk 0:01:00]} 2. Qf3 {[%clk 0:00:59.7]} 2... Nc6 {[%clk 0:00:58.5]} 3. Bc4 {[%clk 0:00:59.3]} 3... Nf6 {[%clk 0:00:57.3]} 4. Bb3 {[%clk 0:00:58]} 4... Nd4 {[%clk 0:00:56.4]} 5. Qc3 {[%clk 0:00:56.4]} 5... d5 {[%clk 0:00:51.4]} 6. Bxd5 {[%clk 0:00:52.4]} 6... Nxd5 {[%clk 0:00:50.8]} 7. exd5 {[%clk 0:00:51.8]} 7... Qxd5 {[%clk 0:00:50.4]} 8. Ne2 {[%clk 0:00:51.1]} 8... c5 {[%clk 0:00:44.9]} 9. Nxd4 {[%clk 0:00:50]} 9... c4 {[%clk 0:00:40.2]} 10. Nf3 {[%clk 0:00:45.7]} 10... Bc5 {[%clk 0:00:35]} 11. Qxe5+ {[%clk 0:00:44.6]} 11... Be6 {[%clk 0:00:32.5]} 12. Qxd5 {[%clk 0:00:43.6]} 12... Bxd5 {[%clk 0:00:32.2]} 13. O-O {[%clk 0:00:41.1]} 13... O-O {[%clk 0:00:31.9]} 14. Ng5 {[%clk 0:00:38.8]} 14... f6 {[%clk 0:00:30.9]} 15. Nh3 {[%clk 0:00:37.7]} 15... f5 {[%clk 0:00:30.1]} 16. Nf4 {[%clk 0:00:36.7]} 16... Bc6 {[%clk 0:00:28.9]} 17. Nc3 {[%clk 0:00:34.7]} 17... Rac8 {[%clk 0:00:28.2]} 18. b3 {[%clk 0:00:31.5]} 18... Bb6 {[%clk 0:00:27]} 19. Ne6 {[%clk 0:00:29.8]} 19... Rf6 {[%clk 0:00:24.9]} 20. Nf4 {[%clk 0:00:28.3]} 20... g5 {[%clk 0:00:23.3]} 21. Nh3 {[%clk 0:00:26.9]} 21... g4 {[%clk 0:00:22.4]} 22. Ng5 {[%clk 0:00:25.7]} 22... h6 {[%clk 0:00:20.8]} 23. Nf7 {[%clk 0:00:22]} 23... Rxf7 {[%clk 0:00:19.8]} 24. bxc4 {[%clk 0:00:19.2]} 24... h5 {[%clk 0:00:19.3]} 25. d4 {[%clk 0:00:17.7]} 25... Bc7 {[%clk 0:00:17.3]} 26. d5 {[%clk 0:00:17.1]} 26... Bd7 {[%clk 0:00:16.6]} 27. Nb5 {[%clk 0:00:15.1]} 27... Bb8 {[%clk 0:00:15.2]} 28. Ba3 {[%clk 0:00:12.7]} 28... Rxc4 {[%clk 0:00:13.9]} 29. Bd6 {[%clk 0:00:08.3]} 29... Bxb5 {[%clk 0:00:12.6]} 30. Ba3 {[%clk 0:00:05.8]} 30... Rxc2 {[%clk 0:00:11.5]} 31. Bc1 {[%clk 0:00:03.8]} 31... Rc5 {[%clk 0:00:09.9]} 32. Bg5 {[%clk 0:00:02.7]} 32... Rxd5 {[%clk 0:00:09]} 33. Bh4 {[%clk 0:00:02]} 33... f4 {[%clk 0:00:06.9]} 34. Bg3 {[%clk 0:00:01.5]} 34... Bc6 {[%clk 0:00:06.1]} 35. Bxf4 {[%clk 0:00:00.8]} 35... Rxf4 {[%clk 0:00:04.9]} 36. g3 {[%clk 0:00:00.6]} 36... Rff5 {[%clk 0:00:03.5]} 37. Rfe1 {[%clk 0:00:00.1]} 37... Rg5 {[%clk 0:00:02.9]} 0-1

[Event "Live Chess"]
[Site "Chess.com"]
[Date "2010.12.04"]
[Round "-"]
[White "hipposcottimus"]
[Black "CPALAW2014"]
[Result "1-0"]
[CurrentPosition "r4rk1/3b1ppQ/p1R1p2n/q2pP1N1/3P4/8/P4PPP/5RK1 b - -"]
[Timezone "UTC"]
[ECO "C00"]
[ECOUrl "https://www.chess.com/openings/French-Defense-Normal-Variation"]
[UTCDate "2010.12.04"]
[UTCTime "00:55:56"]
[WhiteElo "1623"]
[BlackElo "1518"]
[TimeControl "60"]
[Termination "hipposcottimus won by checkmate"]
[StartTime "00:55:56"]
[EndDate "2010.12.04"]
[EndTime "00:57:06"]
[Link "https://www.chess.com/game/live/73810327"]

1. e4 {[%clk 0:01:00]} 1... e6 {[%clk 0:01:00]} 2. d4 {[%clk 0:00:57.7]} 2... c6 {[%clk 0:00:59.5]} 3. c4 {[%clk 0:00:56.1]} 3... d5 {[%clk 0:00:59]} 4. cxd5 {[%clk 0:00:54.9]} 4... cxd5 {[%clk 0:00:58.4]} 5. e5 {[%clk 0:00:54.3]} 5... Nc6 {[%clk 0:00:56.8]} 6. Nc3 {[%clk 0:00:53.3]} 6... Qb6 {[%clk 0:00:56.2]} 7. Nf3 {[%clk 0:00:52.4]} 7... Bb4 {[%clk 0:00:54.4]} 8. Be3 {[%clk 0:00:49.9]} 8... Be7 {[%clk 0:00:49.6]} 9. Bb5 {[%clk 0:00:48]} 9... a6 {[%clk 0:00:48]} 10. Ba4 {[%clk 0:00:46]} 10... Qxb2 {[%clk 0:00:46.2]} 11. Bd2 {[%clk 0:00:45.2]} 11... Qa3 {[%clk 0:00:42.3]} 12. O-O {[%clk 0:00:43.6]} 12... Nh6 {[%clk 0:00:40.1]} 13. Bxc6+ {[%clk 0:00:42.2]} 13... bxc6 {[%clk 0:00:38]} 14. Bg5 {[%clk 0:00:39.3]} 14... Bxg5 {[%clk 0:00:35.5]} 15. Nxg5 {[%clk 0:00:38.5]} 15... Qxc3 {[%clk 0:00:34.7]} 16. Rc1 {[%clk 0:00:37.5]} 16... Qa5 {[%clk 0:00:30.5]} 17. Rxc6 {[%clk 0:00:36.3]} 17... O-O {[%clk 0:00:29.7]} 18. Qd3 {[%clk 0:00:33.6]} 18... Bd7 {[%clk 0:00:27.7]} 19. Qxh7# {[%clk 0:00:32]} 1-0

[Event "Live Chess"]
[Site "Chess.com"]
[Date "2010.12.04"]
[Round "-"]
[White "CPALAW2014"]
[Black "hipposcottimus"]
[Result "1-0"]
[CurrentPosition "r3k2r/p2q2pp/1p3pn1/1B1P4/Q3P1n1/1P4K1/P5PP/RNB4R b kq -"]
[Timezone "UTC"]
[ECO "A00"]
[ECOUrl "https://www.chess.com/openings/Vant-Kruijs-Opening-1...e5"]
[UTCDate "2010.12.04"]
[UTCTime "00:54:45"]
[WhiteElo "1524"]
[BlackElo "1617"]
[TimeControl "60"]
[Termination "CPALAW2014 won by resignation"]
[StartTime "00:54:45"]
[EndDate "2010.12.04"]
[EndTime "00:55:45"]
[Link "https://www.chess.com/game/live/73809999"]

1. e3 {[%clk 0:01:00]} 1... e5 {[%clk 0:01:00]} 2. Nf3 {[%clk 0:00:59.7]} 2... d5 {[%clk 0:00:59.6]} 3. Nxe5 {[%clk 0:00:58.9]} 3... f6 {[%clk 0:00:58.9]} 4. Nf3 {[%clk 0:00:58.5]} 4... c5 {[%clk 0:00:58.2]} 5. Be2 {[%clk 0:00:58.1]} 5... Nc6 {[%clk 0:00:57.5]} 6. c4 {[%clk 0:00:57.7]} 6... Bg4 {[%clk 0:00:56.8]} 7. cxd5 {[%clk 0:00:56.8]} 7... Bxf3 {[%clk 0:00:55.3]} 8. Bxf3 {[%clk 0:00:55.5]} 8... Ne5 {[%clk 0:00:55]} 9. e4 {[%clk 0:00:53.3]} 9... Ne7 {[%clk 0:00:51.7]} 10. Be2 {[%clk 0:00:51.9]} 10... N7g6 {[%clk 0:00:51.4]} 11. d4 {[%clk 0:00:51.1]} 11... cxd4 {[%clk 0:00:48.8]} 12. Qxd4 {[%clk 0:00:50.2]} 12... b6 {[%clk 0:00:47.6]} 13. b3 {[%clk 0:00:46.8]} 13... Bc5 {[%clk 0:00:46.7]} 14. Qa4+ {[%clk 0:00:43.1]} 14... Qd7 {[%clk 0:00:43]} 15. Bb5 {[%clk 0:00:40.3]} 15... Bxf2+ {[%clk 0:00:35.8]} 16. Kxf2 {[%clk 0:00:36.5]} 16... Ng4+ {[%clk 0:00:35.4]} 17. Kg3 {[%clk 0:00:33]} 1-0

[Event "Live Chess"]
[Site "Chess.com"]
[Date "2010.12.04"]
[Round "-"]
[White "hipposcottimus"]
[Black "PaperTiger"]
[Result "1-0"]
[CurrentPosition "4r1k1/p5p1/1pp3p1/3pP1Np/3PnP1q/2P1Q3/PP4PP/R4RK1 b - -"]
[Timezone "UTC"]
[ECO "C41"]
[ECOUrl "https://www.chess.com/openings/Philidor-Defense-3.d4"]
[UTCDate "2010.12.04"]
[UTCTime "00:51:53"]
[WhiteElo "1627"]
[BlackElo "1640"]
[TimeControl "60"]
[Termination "hipposcottimus won on time"]
[StartTime "00:51:53"]
[EndDate "2010.12.04"]
[EndTime "00:53:50"]
[Link "https://www.chess.com/game/live/73809449"]

1. e4 {[%clk 0:01:00]} 1... e5 {[%clk 0:01:00]} 2. Nf3 {[%clk 0:00:59.3]} 2... d6 {[%clk 0:00:59.3]} 3. d4 {[%clk 0:00:57.9]} 3... c6 {[%clk 0:00:57.8]} 4. Bd3 {[%clk 0:00:57.6]} 4... Bg4 {[%clk 0:00:56.5]} 5. c3 {[%clk 0:00:57]} 5... Nf6 {[%clk 0:00:55.5]} 6. Qe2 {[%clk 0:00:55.3]} 6... Be7 {[%clk 0:00:54.1]} 7. Qe3 {[%clk 0:00:54.6]} 7... Nbd7 {[%clk 0:00:52.6]} 8. O-O {[%clk 0:00:53.7]} 8... O-O {[%clk 0:00:44.9]} 9. Bd2 {[%clk 0:00:51.8]} 9... h6 {[%clk 0:00:42.9]} 10. Ne1 {[%clk 0:00:50.9]} 10... Nh7 {[%clk 0:00:41.1]} 11. f3 {[%clk 0:00:50.4]} 11... Bh5 {[%clk 0:00:39.7]} 12. Be2 {[%clk 0:00:46.2]} 12... Bg5 {[%clk 0:00:38.5]} 13. Qd3 {[%clk 0:00:43.2]} 13... Bf4 {[%clk 0:00:36.4]} 14. Bxf4 {[%clk 0:00:38.6]} 14... exf4 {[%clk 0:00:35.4]} 15. e5 {[%clk 0:00:38.2]} 15... d5 {[%clk 0:00:33.7]} 16. Qf5 {[%clk 0:00:35]} 16... Bg6 {[%clk 0:00:28.8]} 17. Qxf4 {[%clk 0:00:34.1]} 17... Qc7 {[%clk 0:00:26.9]} 18. Nd2 {[%clk 0:00:30.7]} 18... Ndf6 {[%clk 0:00:26]} 19. Nb3 {[%clk 0:00:29.9]} 19... Nh5 {[%clk 0:00:24]} 20. Qd2 {[%clk 0:00:28.2]} 20... Ng5 {[%clk 0:00:22.9]} 21. Bd3 {[%clk 0:00:27.5]} 21... Qe7 {[%clk 0:00:17.9]} 22. Bxg6 {[%clk 0:00:26.2]} 22... fxg6 {[%clk 0:00:17]} 23. Nd3 {[%clk 0:00:25.9]} 23... Nf4 {[%clk 0:00:15.4]} 24. Nxf4 {[%clk 0:00:23.6]} 24... Rxf4 {[%clk 0:00:14.4]} 25. Qxf4 {[%clk 0:00:23.3]} 25... Rf8 {[%clk 0:00:12.1]} 26. Qg3 {[%clk 0:00:21.9]} 26... h5 {[%clk 0:00:09.9]} 27. f4 {[%clk 0:00:20.7]} 27... Ne4 {[%clk 0:00:08.4]} 28. Qe3 {[%clk 0:00:19.4]} 28... Qh4 {[%clk 0:00:07]} 29. Nc5 {[%clk 0:00:17.8]} 29... b6 {[%clk 0:00:04.8]} 30. Ne6 {[%clk 0:00:16]} 30... Re8 {[%clk 0:00:03.3]} 31. Ng5 {[%clk 0:00:15.4]} 1-0

[Event "Live Chess"]
[Site "Chess.com"]
[Date "2010.12.04"]
[Round "-"]
[White "bimbamdtf"]
[Black "hipposcottimus"]
[Result "0-1"]
[CurrentPosition "3r3k/1R4pp/8/4pK2/5q2/1P3P1P/6P1/8 w - -"]
[Timezone "UTC"]
[ECO "C21"]
[ECOUrl "https://www.chess.com/openings/Danish-Gambit"]
[UTCDate "2010.12.04"]
[UTCTime "00:48:45"]
[WhiteElo "1542"]
[BlackElo "1618"]
[TimeControl "60"]
[Termination "hipposcottimus won on time"]
[StartTime "00:48:45"]
[EndDate "2010.12.04"]
[EndTime "00:51:04"]
[Link "https://www.chess.com/game/live/73808789"]

1. e4 {[%clk 0:01:00]} 1... e5 {[%clk 0:01:00]} 2. d4 {[%clk 0:00:59.2]} 2... exd4 {[%clk 0:00:58.7]} 3. c3 {[%clk 0:00:58.9]} 3... d6 {[%clk 0:00:56.1]} 4. Nf3 {[%clk 0:00:57.1]} 4... Bg4 {[%clk 0:00:53.3]} 5. Be2 {[%clk 0:00:55.7]} 5... Bxf3 {[%clk 0:00:51.7]} 6. Bxf3 {[%clk 0:00:54.6]} 6... dxc3 {[%clk 0:00:51.5]} 7. Nxc3 {[%clk 0:00:53]} 7... Be7 {[%clk 0:00:51.3]} 8. O-O {[%clk 0:00:51.5]} 8... Nf6 {[%clk 0:00:51]} 9. Re1 {[%clk 0:00:50.3]} 9... Nfd7 {[%clk 0:00:50.4]} 10. Bf4 {[%clk 0:00:47.6]} 10... c5 {[%clk 0:00:50.1]} 11. e5 {[%clk 0:00:44.5]} 11... O-O {[%clk 0:00:47.9]} 12. exd6 {[%clk 0:00:42.9]} 12... Bf6 {[%clk 0:00:47.6]} 13. Qc2 {[%clk 0:00:36.6]} 13... Bg5 {[%clk 0:00:42]} 14. Bxg5 {[%clk 0:00:35.2]} 14... Qxg5 {[%clk 0:00:41.3]} 15. Nd5 {[%clk 0:00:31.1]} 15... Na6 {[%clk 0:00:36.6]} 16. Ne7+ {[%clk 0:00:28]} 16... Kh8 {[%clk 0:00:36]} 17. Bxb7 {[%clk 0:00:26]} 17... Nb4 {[%clk 0:00:31.7]} 18. Qb3 {[%clk 0:00:22.1]} 18... Rab8 {[%clk 0:00:31]} 19. Bf3 {[%clk 0:00:19.2]} 19... Qg6 {[%clk 0:00:29.6]} 20. h3 {[%clk 0:00:17.9]} 20... Qxd6 {[%clk 0:00:28.6]} 21. Nf5 {[%clk 0:00:15.8]} 21... Qf6 {[%clk 0:00:27.4]} 22. Nh4 {[%clk 0:00:12.9]} 22... Ne5 {[%clk 0:00:24.1]} 23. Rad1 {[%clk 0:00:11.8]} 23... Nxf3+ {[%clk 0:00:22.2]} 24. Nxf3 {[%clk 0:00:11.4]} 24... Na6 {[%clk 0:00:16.6]} 25. Rd7 {[%clk 0:00:10.9]} 25... Rxb3 {[%clk 0:00:14.3]} 26. Ree7 {[%clk 0:00:10.4]} 26... Qg6 {[%clk 0:00:12.9]} 27. axb3 {[%clk 0:00:09.1]} 27... Nb8 {[%clk 0:00:10.8]} 28. Rxa7 {[%clk 0:00:08.2]} 28... f6 {[%clk 0:00:09.1]} 29. Rab7 {[%clk 0:00:07.4]} 29... Nc6 {[%clk 0:00:07.2]} 30. Rec7 {[%clk 0:00:07]} 30... Ne5 {[%clk 0:00:06.4]} 31. Rxc5 {[%clk 0:00:06.3]} 31... Nxf3+ {[%clk 0:00:05.3]} 32. Kf1 {[%clk 0:00:05.4]} 32... Ne5 {[%clk 0:00:05]} 33. f3 {[%clk 0:00:04.3]} 33... Re8 {[%clk 0:00:04.7]} 34. Rxe5 {[%clk 0:00:03]} 34... Qb1+ {[%clk 0:00:04.4]} 35. Kf2 {[%clk 0:00:02]} 35... fxe5 {[%clk 0:00:04.1]} 36. Kg3 {[%clk 0:00:01.6]} 36... Rd8 {[%clk 0:00:03.5]} 37. Kh4 {[%clk 0:00:01.2]} 37... Qxb2 {[%clk 0:00:02]} 38. Kg4 {[%clk 0:00:00.8]} 38... Qd4+ {[%clk 0:00:01.6]} 39. Kf5 {[%clk 0:00:00.5]} 39... Qf4+ {[%clk 0:00:00.9]} 0-1

[Event "Live Chess"]
[Site "Chess.com"]
[Date "2010.12.04"]
[Round "-"]
[White "hipposcottimus"]
[Black "bimbamdtf"]
[Result "0-1"]
[CurrentPosition "6k1/pp2p2p/2p1N1pb/2PnP3/1P4P1/5R2/r7/4RK1r w - -"]
[Timezone "UTC"]
[ECO "B06"]
[ECOUrl "https://www.chess.com/openings/Modern-Defense-Norwegian-Defense"]
[UTCDate "2010.12.04"]
[UTCTime "00:46:18"]
[WhiteElo "1611"]
[BlackElo "1549"]
[TimeControl "60"]
[Termination "bimbamdtf won by checkmate"]
[StartTime "00:46:18"]
[EndDate "2010.12.04"]
[EndTime "00:48:10"]
[Link "https://www.chess.com/game/live/73808249"]

1. d4 {[%clk 0:01:00]} 1... Nf6 {[%clk 0:01:00]} 2. e4 {[%clk 0:00:57.3]} 2... g6 {[%clk 0:00:58.7]} 3. e5 {[%clk 0:00:56.7]} 3... Nd5 {[%clk 0:00:57.2]} 4. Nf3 {[%clk 0:00:56.3]} 4... c6 {[%clk 0:00:54.7]} 5. c4 {[%clk 0:00:55.4]} 5... Nc7 {[%clk 0:00:53.3]} 6. Nc3 {[%clk 0:00:54.7]} 6... d6 {[%clk 0:00:52.1]} 7. Bf4 {[%clk 0:00:54.4]} 7... dxe5 {[%clk 0:00:50.7]} 8. dxe5 {[%clk 0:00:54.2]} 8... Qxd1+ {[%clk 0:00:48.9]} 9. Rxd1 {[%clk 0:00:53.9]} 9... Bg7 {[%clk 0:00:48.1]} 10. Be2 {[%clk 0:00:53.7]} 10... O-O {[%clk 0:00:47]} 11. O-O {[%clk 0:00:53.4]} 11... Bf5 {[%clk 0:00:46.1]} 12. Bd3 {[%clk 0:00:51.5]} 12... Bxd3 {[%clk 0:00:44.9]} 13. Rxd3 {[%clk 0:00:49.7]} 13... Nba6 {[%clk 0:00:43.7]} 14. Re3 {[%clk 0:00:49.3]} 14... Nc5 {[%clk 0:00:42.8]} 15. b4 {[%clk 0:00:45.5]} 15... N5e6 {[%clk 0:00:41.1]} 16. Ne4 {[%clk 0:00:44.5]} 16... Nxf4 {[%clk 0:00:40.1]} 17. g3 {[%clk 0:00:44]} 17... Nfe6 {[%clk 0:00:38.5]} 18. c5 {[%clk 0:00:41.9]} 18... Rad8 {[%clk 0:00:37.3]} 19. Nfg5 {[%clk 0:00:40.7]} 19... Rd2 {[%clk 0:00:35.3]} 20. Nxe6 {[%clk 0:00:38.6]} 20... fxe6 {[%clk 0:00:32.8]} 21. Rfe1 {[%clk 0:00:38.3]} 21... Rxa2 {[%clk 0:00:31.6]} 22. Rd3 {[%clk 0:00:36.3]} 22... Nd5 {[%clk 0:00:25.4]} 23. Ng5 {[%clk 0:00:30.7]} 23... Rfxf2 {[%clk 0:00:23]} 24. Rf3 {[%clk 0:00:19.1]} 24... Rg2+ {[%clk 0:00:20.9]} 25. Kf1 {[%clk 0:00:18.1]} 25... Rxh2 {[%clk 0:00:18.1]} 26. Nxe6 {[%clk 0:00:17.3]} 26... Bh6 {[%clk 0:00:14.4]} 27. g4 {[%clk 0:00:08.5]} 27... Rh1# {[%clk 0:00:13]} 0-1

[Event "Live Chess"]
[Site "Chess.com"]
[Date "2010.12.04"]
[Round "-"]
[White "praveen_80"]
[Black "hipposcottimus"]
[Result "1-0"]
[CurrentPosition "8/p6p/3N4/1pp3p1/1PP3Pk/3p2QP/P5K1/8 b - -"]
[Timezone "UTC"]
[ECO "C20"]
[ECOUrl "https://www.chess.com/openings/Kings-Pawn-Opening-MacLeod-Attack"]
[UTCDate "2010.12.04"]
[UTCTime "00:43:48"]
[WhiteElo "1604"]
[BlackElo "1620"]
[TimeControl "60"]
[Termination "praveen_80 won by checkmate"]
[StartTime "00:43:48"]
[EndDate "2010.12.04"]
[EndTime "00:45:53"]
[Link "https://www.chess.com/game/live/73807685"]

1. e4 {[%clk 0:01:00]} 1... e5 {[%clk 0:01:00]} 2. c3 {[%clk 0:01:00]} 2... Nc6 {[%clk 0:00:59.6]} 3. Qc2 {[%clk 0:01:00]} 3... Nf6 {[%clk 0:00:59.1]} 4. g3 {[%clk 0:01:00]} 4... Bc5 {[%clk 0:00:53.7]} 5. Bg2 {[%clk 0:01:00]} 5... Bb6 {[%clk 0:00:53.3]} 6. b4 {[%clk 0:00:58.6]} 6... Ne7 {[%clk 0:00:53.1]} 7. Bb2 {[%clk 0:00:58]} 7... d5 {[%clk 0:00:52.7]} 8. exd5 {[%clk 0:00:56.4]} 8... e4 {[%clk 0:00:52.3]} 9. Nh3 {[%clk 0:00:53.4]} 9... Qxd5 {[%clk 0:00:51.4]} 10. Nf4 {[%clk 0:00:51.1]} 10... Qc6 {[%clk 0:00:49.1]} 11. Na3 {[%clk 0:00:47.9]} 11... O-O {[%clk 0:00:47.3]} 12. Qc1 {[%clk 0:00:44.1]} 12... Bf5 {[%clk 0:00:47]} 13. d3 {[%clk 0:00:42.2]} 13... Bxf2+ {[%clk 0:00:46.1]} 14. Kxf2 {[%clk 0:00:40.3]} 14... Ng4+ {[%clk 0:00:45.8]} 15. Kg1 {[%clk 0:00:38.3]} 15... exd3 {[%clk 0:00:45.3]} 16. Bxc6 {[%clk 0:00:36.7]} 16... Nxc6 {[%clk 0:00:44.6]} 17. Nd5 {[%clk 0:00:34.8]} 17... Nce5 {[%clk 0:00:42.7]} 18. Qf4 {[%clk 0:00:34.2]} 18... Rae8 {[%clk 0:00:37.9]} 19. Qxf5 {[%clk 0:00:32.9]} 19... Ne3 {[%clk 0:00:33.7]} 20. Qg5 {[%clk 0:00:28.8]} 20... Nxd5 {[%clk 0:00:32.1]} 21. Rf1 {[%clk 0:00:25.6]} 21... Nf6 {[%clk 0:00:25.5]} 22. c4 {[%clk 0:00:24.2]} 22... Neg4 {[%clk 0:00:23.4]} 23. Bxf6 {[%clk 0:00:21.7]} 23... Nxf6 {[%clk 0:00:23.1]} 24. Rxf6 {[%clk 0:00:20.3]} 24... Re6 {[%clk 0:00:22.4]} 25. Rxe6 {[%clk 0:00:19]} 25... fxe6 {[%clk 0:00:21.9]} 26. Kg2 {[%clk 0:00:17.6]} 26... Kh8 {[%clk 0:00:21.4]} 27. Rf1 {[%clk 0:00:16.4]} 27... Kg8 {[%clk 0:00:21.1]} 28. Rxf8+ {[%clk 0:00:14.9]} 28... Kxf8 {[%clk 0:00:20.9]} 29. Qf4+ {[%clk 0:00:13.9]} 29... Ke7 {[%clk 0:00:19.9]} 30. Nb5 {[%clk 0:00:12.6]} 30... c5 {[%clk 0:00:18.3]} 31. Qc7+ {[%clk 0:00:11.6]} 31... Kf6 {[%clk 0:00:17.1]} 32. Nd6 {[%clk 0:00:11.1]} 32... Kg6 {[%clk 0:00:15.4]} 33. Qf7+ {[%clk 0:00:11.1]} 33... Kg5 {[%clk 0:00:13.7]} 34. Qxe6 {[%clk 0:00:10.8]} 34... Kh5 {[%clk 0:00:11.9]} 35. g4+ {[%clk 0:00:09.3]} 35... Kh4 {[%clk 0:00:10.5]} 36. h3 {[%clk 0:00:08.5]} 36... g5 {[%clk 0:00:09.7]} 37. Qe3 {[%clk 0:00:06.6]} 37... b5 {[%clk 0:00:07.6]} 38. Qg3# {[%clk 0:00:06.3]} 1-0

[Event "Live Chess"]
[Site "Chess.com"]
[Date "2010.12.03"]
[Round "-"]
[White "hipposcottimus"]
[Black "guinness85"]
[Result "0-1"]
[CurrentPosition "rn1k1b1r/ppNb1ppp/5q2/1B6/3P4/8/PPP2PpP/R2QK2R w KQ -"]
[Timezone "UTC"]
[ECO "C42"]
[ECOUrl "https://www.chess.com/openings/Petrovs-Defense-Urusov-Gambit"]
[UTCDate "2010.12.03"]
[UTCTime "20:02:45"]
[WhiteElo "1629"]
[BlackElo "1778"]
[TimeControl "60"]
[Termination "guinness85 won on time"]
[StartTime "20:02:45"]
[EndDate "2010.12.03"]
[EndTime "20:03:18"]
[Link "https://www.chess.com/game/live/73736767"]

1. e4 {[%clk 0:01:00]} 1... e5 {[%clk 0:01:00]} 2. Nf3 {[%clk 0:00:59.7]} 2... Nf6 {[%clk 0:00:59.7]} 3. Bc4 {[%clk 0:00:59.4]} 3... c6 {[%clk 0:00:58.4]} 4. Nc3 {[%clk 0:00:58.1]} 4... d5 {[%clk 0:00:58.1]} 5. exd5 {[%clk 0:00:56.2]} 5... cxd5 {[%clk 0:00:57.2]} 6. Bb5+ {[%clk 0:00:54.5]} 6... Bd7 {[%clk 0:00:55.7]} 7. d4 {[%clk 0:00:52.7]} 7... e4 {[%clk 0:00:54.2]} 8. Bg5 {[%clk 0:00:50.8]} 8... exf3 {[%clk 0:00:52.2]} 9. Bxf6 {[%clk 0:00:50.3]} 9... Qxf6 {[%clk 0:00:51]} 10. Nxd5 {[%clk 0:00:49.4]} 10... fxg2 {[%clk 0:00:48.2]} 11. Nc7+ {[%clk 0:00:47.8]} 11... Kd8 {[%clk 0:00:45.2]} 0-1

[Event "Live Chess"]
[Site "Chess.com"]
[Date "2010.12.03"]
[Round "-"]
[White "hipposcottimus"]
[Black "sep76golf"]
[Result "0-1"]
[CurrentPosition "5rk1/5ppp/4p3/1p2P3/4B3/P6Q/2q3PP/3r2K1 w - -"]
[Timezone "UTC"]
[ECO "B20"]
[ECOUrl "https://www.chess.com/openings/Sicilian-Defense"]
[UTCDate "2010.12.03"]
[UTCTime "19:57:48"]
[WhiteElo "1629"]
[BlackElo "1674"]
[TimeControl "60"]
[Termination "sep76golf won by checkmate"]
[StartTime "19:57:48"]
[EndDate "2010.12.03"]
[EndTime "19:59:54"]
[Link "https://www.chess.com/game/live/73735690"]

1. e4 {[%clk 0:01:00]} 1... c5 {[%clk 0:01:00]} 2. Bb5 {[%clk 0:00:57.8]} 2... a6 {[%clk 0:00:58]} 3. Be2 {[%clk 0:00:57.6]} 3... Nc6 {[%clk 0:00:56.6]} 4. Nf3 {[%clk 0:00:57.3]} 4... Nf6 {[%clk 0:00:56.1]} 5. c4 {[%clk 0:00:57]} 5... Nxe4 {[%clk 0:00:53.9]} 6. d3 {[%clk 0:00:56.8]} 6... Nf6 {[%clk 0:00:52.5]} 7. Nc3 {[%clk 0:00:56.6]} 7... e6 {[%clk 0:00:51.7]} 8. O-O {[%clk 0:00:56.2]} 8... Be7 {[%clk 0:00:48.3]} 9. Bg5 {[%clk 0:00:55.9]} 9... O-O {[%clk 0:00:46.9]} 10. Bf4 {[%clk 0:00:55.2]} 10... d5 {[%clk 0:00:44.7]} 11. Ne5 {[%clk 0:00:54.5]} 11... Nxe5 {[%clk 0:00:36.9]} 12. Bxe5 {[%clk 0:00:52.9]} 12... d4 {[%clk 0:00:35.3]} 13. Ne4 {[%clk 0:00:52.3]} 13... Nxe4 {[%clk 0:00:30.9]} 14. dxe4 {[%clk 0:00:51.8]} 14... Bd6 {[%clk 0:00:29.9]} 15. f4 {[%clk 0:00:50.8]} 15... Bxe5 {[%clk 0:00:28.5]} 16. fxe5 {[%clk 0:00:50.5]} 16... Qg5 {[%clk 0:00:25.3]} 17. Qd3 {[%clk 0:00:50.2]} 17... Qxe5 {[%clk 0:00:24.2]} 18. Bg4 {[%clk 0:00:47.1]} 18... Bd7 {[%clk 0:00:22.7]} 19. Qh3 {[%clk 0:00:46]} 19... Bc6 {[%clk 0:00:20.5]} 20. Rae1 {[%clk 0:00:42.1]} 20... Rad8 {[%clk 0:00:17.8]} 21. Bf3 {[%clk 0:00:41.1]} 21... d3 {[%clk 0:00:16.6]} 22. Rf2 {[%clk 0:00:39.4]} 22... b5 {[%clk 0:00:14.1]} 23. cxb5 {[%clk 0:00:36.8]} 23... axb5 {[%clk 0:00:13.3]} 24. Rd1 {[%clk 0:00:35.5]} 24... c4 {[%clk 0:00:12.1]} 25. a3 {[%clk 0:00:33.9]} 25... c3 {[%clk 0:00:09.7]} 26. bxc3 {[%clk 0:00:32.3]} 26... Qxc3 {[%clk 0:00:09.3]} 27. e5 {[%clk 0:00:28.3]} 27... d2 {[%clk 0:00:07.9]} 28. Bxc6 {[%clk 0:00:25.5]} 28... Qc2 {[%clk 0:00:05.3]} 29. Rfxd2 {[%clk 0:00:18.7]} 29... Rxd2 {[%clk 0:00:03.1]} 30. Be4 {[%clk 0:00:08]} 30... Rxd1# {[%clk 0:00:01.1]} 0-1